bitfinex-derivatives/quotes_SOLF0:USTF0_20260304
["timestamp","ask_amount","ask_price","bid_price","bid_amount"]
[1772654343930,3.31025997,93.21,93.178,9.69929258]
[1772654345623,36.58971278,93.22,93.178,9.69929258]
[1772654346122,3.31025997,93.21,93.178,9.69929258]
[1772654348833,3.31025997,93.2,93.178,9.69929258]
[1772654354343,3.31025997,93.21,93.178,0.00029258]
[1772654355240,3.31025997,93.2,93.178,0.00029258]
[1772654358348,36.58971278,93.2,93.178,0.00029258]
[1772654358547,3.31025997,93.19,93.178,0.00029258]
[1772654358952,36.96790788,93.19,93.178,0.00029258]
[1772654359747,3.31025997,93.18,93.133,24.28242245]
[1772654360148,3.31025997,93.2,93.145,24.28242245]
[1772654361451,36.96790788,93.2,93.152,9.657]
[1772654362148,3.31025997,93.19,93.152,9.657]
[1772654363648,33.65764791,93.214,93.153,24.77622638]
[1772654363849,36.96790788,93.21,93.153,24.77622638]
[1772654364053,3.31025997,93.19,93.153,24.77622638]
[1772654364443,3.31025997,93.19,93.154,9.657]
[1772654364649,3.31025997,93.19,93.142,24.77487237]
[1772654365444,3.31025997,93.19,93.16,9.656]
[1772654365650,36.96790788,93.19,93.142,24.77487237]
[1772654365952,33.65764791,93.179,93.141,53.982]
[1772654366448,33.65764791,93.179,93.148,9.657]
[1772654366648,3.31025997,93.19,93.148,9.657]
[1772654367546,3.31025997,93.19,93.154,9.656]
[1772654367749,3.31025997,93.2,93.142,25.25994704]
[1772654368151,3.31025997,93.19,93.142,25.25994704]
[1772654368754,33.20319769,93.189,93.142,25.25994704]
[1772654369051,33.20319769,93.189,93.143,53.982]
[1772654369453,3.31025997,93.18,93.143,53.982]
[1772654369655,3.31025997,93.18,93.146,9.657]
[1772654370554,3.31025997,93.18,93.143,53.982]
[1772654370756,3.31025997,93.18,93.142,25.25994704]
[1772654374356,10.00585134,93.239,93.117,53.982]
[1772654374357,33.20319769,93.204,93.151,24.64374162]
[1772654374557,36.51345766,93.2,93.151,24.64374162]
[1772654374758,3.31025997,93.19,93.151,24.64374162]
[1772654374958,36.51345766,93.19,93.141,53.982]
[1772654375459,36.51345766,93.19,93.144,35.13193676]
[1772654375660,3.31025997,93.2,93.151,25.47393676]
[1772654376250,19.295,93.246,93.141,53.982]
[1772654376251,36.51345766,93.19,93.141,53.982]
[1772654376558,3.31025997,93.18,93.142,25.47270232]
[1772654376762,36.51345766,93.19,93.142,25.47270232]
[1772654378358,36.51345766,93.19,93.144,9.658]
[1772654379660,36.51345766,93.19,93.146,9.657]
[1772654380062,36.51345766,93.19,93.146,25.6406186]
[1772654380360,36.51345766,93.19,93.146,35.2976186]
[1772654380555,36.51992148,93.19,93.146,9.657]
[1772654380761,3.31672379,93.17,93.132,25.64012753]
[1772654380960,33.20319769,93.179,93.132,25.64012753]
[1772654381357,3.31672379,93.19,93.132,25.64012753]
[1772654381562,9.653,93.185,93.14,25.78024723]
[1772654383167,33.20319769,93.179,93.13,3.31672379]
[1772654383369,33.20319769,93.179,93.124,25.77903628]
[1772654384470,33.20319769,93.177,93.125,9.659]
[1772654384871,33.20319769,93.177,93.125,35.4778759]
[1772654385471,33.20319769,93.177,93.13,3.31672379]
[1772654385968,9.654,93.175,93.13,3.31672379]
[1772654386367,9.654,93.175,93.125,35.4778759]
[1772654386368,33.20319769,93.174,93.126,25.8281575]
[1772654386674,9.656,93.16,93.122,53.982]
[1772654386968,9.656,93.16,93.115,25.8281575]
[1772654387272,36.51992148,93.17,93.12,29.14488129]
[1772654387772,33.20319769,93.17,93.13,3.31672379]
[1772654387968,9.655,93.168,93.13,3.31672379]
[1772654388272,9.655,93.168,93.124,25.86399161]
[1772654388668,3.31672379,93.17,93.124,25.86399161]
[1772654390072,3.31672379,93.17,93.127,36.27044606]
[1772654390372,42.23533876,93.185,93.14,3.31672379]
[1772654390972,32.58233876,93.185,93.14,3.31672379]
[1772654391568,35.89906255,93.2,93.15,3.31672379]
[1772654392075,35.89906255,93.2,93.151,9.657]
[1772654392575,35.89906255,93.2,93.152,9.657]
[1772654392872,32.58233876,93.189,93.14,29.95383346]
[1772654393070,32.58233876,93.189,93.15,3.31672379]
[1772654394372,32.58233876,93.189,93.158,9.656]
[1772654395273,32.58233876,93.179,93.127,26.64505451]
[1772654395472,32.58233876,93.179,93.14,3.31672379]
[1772654396279,32.58233876,93.179,93.147,9.657]
[1772654396874,214.30491357,93.717,93.15,29.15736981]
[1772654396875,32.58233876,93.199,93.15,29.15736981]
[1772654399777,32.58233876,93.199,93.151,9.657]
[1772654400575,32.58233876,93.199,93.15,29.15736981]
[1772654401684,32.58233876,93.196,93.15,29.15736981]
[1772654402085,32.58233876,93.196,93.141,9.658]
[1772654402275,3.31672379,93.23,93.17,3.31672379]
[1772654402475,32.58233876,93.209,93.149,53.982]
[1772654402678,35.89906255,93.19,93.141,25.09765529]
[1772654402979,32.58233876,93.209,93.16,3.31672379]
[1772654403184,32.58233876,93.209,93.16,25.09765529]
[1772654403382,32.58233876,93.209,93.163,34.75202946]
[1772654403583,32.58233876,93.223,93.18,3.31672379]
[1772654403785,32.58233876,93.235,93.19,28.84395266]
[1772654403990,32.58233876,93.249,93.2,3.31672379]
[1772654404488,35.89906255,93.24,93.19,28.84395266]
[1772654404982,32.58233876,93.24,93.2,3.31672379]
[1772654405182,32.58233876,93.254,93.21,3.31672379]
[1772654405983,13.26764516,93.303,93.16,39.02519342]
[1772654405984,32.58233876,93.269,93.22,3.31672379]
[1772654406181,32.58233876,93.279,93.23,3.31672379]
[1772654406393,32.58233876,93.279,93.24,3.31672379]
[1772654406883,42.22633876,93.279,93.24,3.31672379]
[1772654407388,32.58233876,93.309,93.26,3.31672379]
[1772654408189,32.58233876,93.309,93.27,3.31672379]
[1772654408888,32.58233876,93.309,93.28,3.31672379]
[1772654409087,9.639,93.323,93.28,3.31672379]
[1772654409591,32.58233876,93.327,93.29,3.31672379]
[1772654410084,32.58233876,93.327,93.263,27.84405325]
[1772654410085,32.58233876,93.327,93.28,3.31672379]
[1772654410286,32.58233876,93.325,93.27,3.31672379]
[1772654410487,32.58233876,93.319,93.27,3.31672379]
[1772654411487,32.58233876,93.319,93.263,27.84405325]
[1772654411488,32.58233876,93.319,93.28,3.31672379]
[1772654411688,32.58233876,93.319,93.27,3.31672379]
[1772654411884,10.82042255,93.36,93.26,3.31672379]
[1772654411885,32.58233876,93.309,93.26,3.31672379]
[1772654412489,32.58233876,93.299,93.25,3.31672379]
[1772654412888,32.58233876,93.299,93.26,3.31672379]
[1772654414393,32.58233876,93.289,93.24,3.31672379]
[1772654414593,32.58233876,93.289,93.232,28.18756336]
[1772654415593,32.58233876,93.279,93.23,3.31672379]
[1772654415784,32.58233876,93.279,93.217,28.01640655]
[1772654415991,32.58233876,93.277,93.23,3.31672379]
[1772654416392,32.58233876,93.264,93.23,3.31672379]
[1772654416693,32.58233876,93.264,93.21,3.31672379]
[1772654416886,32.58233876,93.259,93.21,3.31672379]
[1772654417900,42.22833876,93.259,93.21,3.31672379]
[1772654418588,37.08934464,93.258,93.21,3.31672379]
[1772654418789,46.73534464,93.256,93.21,3.31672379]
[1772654418986,37.08934464,93.255,93.201,27.97910688]
[1772654419193,37.08934464,93.255,93.2,3.31672379]
[1772654419194,37.08934464,93.246,93.2,3.31672379]
[1772654420293,37.08934464,93.261,93.22,3.31672379]
[1772654422288,37.08934464,93.258,93.22,3.31672379]
[1772654422493,37.08934464,93.258,93.21,3.31672379]
[1772654423090,37.08934464,93.258,93.22,3.31672379]
[1772654423401,37.08934464,93.278,93.23,3.31672379]
[1772654423894,37.08934464,93.278,93.221,9.65]
[1772654425494,37.08934464,93.278,93.22,3.31672379]
[1772654426000,37.08934464,93.259,93.217,53.982]
[1772654426201,37.08934464,93.259,93.21,3.31672379]
[1772654427802,34.48021339,93.239,93.19,3.31672379]
[1772654427994,37.79693718,93.23,93.17,32.17281983]
[1772654428196,34.48021339,93.23,93.171,53.982]
[1772654428501,34.48021339,93.23,93.172,9.655]
[1772654428999,34.48021339,93.23,93.177,9.654]
[1772654429200,34.48021339,93.269,93.178,28.85785376]
[1772654429398,34.48021339,93.269,93.18,28.86014169]
[1772654429995,34.48021339,93.258,93.198,9.652]
[1772654430198,34.48021339,93.258,93.199,28.76062294]
[1772654431398,34.48021339,93.258,93.202,28.83876916]
[1772654433702,34.48021339,93.256,93.202,28.83876916]
[1772654434300,34.48021339,93.253,93.197,53.982]
[1772654434696,34.48021339,93.253,93.198,28.69046972]
[1772654434900,34.48021339,93.253,93.2,28.69046972]
[1772654435102,34.48021339,93.253,93.208,9.651]
[1772654435302,34.48021339,93.253,93.2,28.69046972]
[1772654436198,34.48021339,93.253,93.201,9.652]
[1772654436901,34.48021339,93.267,93.204,28.66524344]
[1772654438007,34.48021339,93.266,93.204,28.66524344]
[1772654439503,34.48021339,93.282,93.22,28.75496304]
[1772654439800,34.48021339,93.282,93.23,8.28542652]
[1772654440005,34.48021339,93.319,93.231,28.66537031]
[1772654440406,34.48021339,93.301,93.248,9.647]
[1772654441707,34.48021339,93.301,93.246,28.66612095]
[1772654443108,34.48021339,93.29,93.231,9.649]
[1772654444008,34.48021339,93.29,93.239,9.648]
[1772654444209,34.48021339,93.29,93.24,27.34716111]
[1772654445505,34.48021339,93.29,93.243,9.647]
[1772654445702,34.48021339,93.29,93.243,37.24141178]
[1772654445904,9.642,93.299,93.244,27.59441178]
[1772654446811,9.642,93.296,93.244,27.59441178]
[1772654447011,34.48021339,93.298,93.244,27.59441178]
[1772654448101,34.48021339,93.313,93.253,27.69822262]
[1772654448904,33.1154697,93.311,93.253,27.69822262]
[1772654449210,33.1154697,93.311,93.232,27.64119593]
[1772654449602,33.1154697,93.285,93.232,27.64119593]
[1772654451310,42.7584697,93.285,93.233,9.648]
[1772654452214,42.7584697,93.285,93.236,9.648]
[1772654453015,42.7584697,93.285,93.237,53.982]
[1772654453317,9.644,93.278,93.237,53.982]
[1772654453612,9.644,93.278,93.238,53.982]
[1772654455216,33.1154697,93.285,93.238,53.982]
[1772654456216,33.1154697,93.283,93.238,53.982]
[1772654456615,33.1154697,93.283,93.228,53.982]
[1772654456814,33.1154697,93.283,93.204,26.92787665]
[1772654457017,33.1154697,93.26,93.188,26.92787665]
[1772654457217,33.1154697,93.26,93.173,26.92787665]
[1772654457414,33.1154697,93.249,93.173,26.92787665]
[1772654457619,33.1154697,93.245,93.175,9.654]
[1772654457814,33.1154697,93.245,93.173,26.92787665]
[1772654459425,33.1154697,93.245,93.194,9.652]
[1772654460328,33.1154697,93.245,93.173,26.92787665]
[1772654460828,33.1154697,93.245,93.174,27.3057117]
[1772654461020,33.1154697,93.245,93.202,9.652]
[1772654461626,9.644,93.273,93.202,9.652]
[1772654461929,33.1154697,93.269,93.202,36.94194506]
[1772654462127,33.1154697,93.269,93.21,27.28994506]
[1772654463427,33.1154697,93.269,93.212,9.651]
[1772654464229,33.1154697,93.269,93.215,9.65]
[1772654465120,33.1154697,93.288,93.217,27.35095838]
[1772654465328,33.1154697,93.288,93.219,27.35095838]
[1772654465831,33.1154697,93.287,93.221,27.36701529]
[1772654466025,33.1154697,93.287,93.231,27.36701529]
[1772654466227,33.1154697,93.329,93.231,27.36701529]
[1772654466931,42.7564697,93.304,93.248,9.647]
[1772654467124,33.1154697,93.303,93.248,9.647]
[1772654467324,33.1154697,93.303,93.231,27.36701529]
[1772654467525,33.1154697,93.302,93.24,9.648]
[1772654467732,33.1154697,93.302,93.231,27.36701529]
[1772654467930,9.642,93.291,93.231,37.01601529]
[1772654468132,33.1154697,93.29,93.231,37.01601529]
[1772654468627,33.1154697,93.287,93.231,27.36701529]
[1772654468832,33.1154697,93.287,93.222,9.649]
[1772654469034,33.1154697,93.287,93.212,27.47132739]
[1772654469236,35.61298771,93.26,93.191,27.49908939]
[1772654470332,35.61298771,93.26,93.201,9.652]
[1772654470333,35.61298771,93.259,93.201,9.652]
[1772654470730,9.645,93.27,93.21,27.45314189]
[1772654470932,35.61298771,93.269,93.21,27.45314189]
[1772654471932,35.61298771,93.267,93.212,9.651]
[1772654473538,35.61298771,93.267,93.22,9.65]
[1772654473933,19.28,93.318,93.22,9.65]
[1772654473934,35.61298771,93.37,93.265,26.82892682]
[1772654474135,35.61298771,93.37,93.311,26.82892682]
[1772654474440,35.61298771,93.37,93.292,26.82892682]
[1772654474635,35.61298771,93.367,93.31,35.09363868]
[1772654474842,35.61298771,93.409,93.311,26.82133157]
[1772654475532,35.61298771,93.409,93.332,9.638]
[1772654476230,35.61298771,93.405,93.332,9.638]
[1772654476432,35.61298771,93.405,93.33,8.27230711]
[1772654477037,35.61298771,93.401,93.331,9.638]
[1772654477238,35.61298771,93.401,93.332,27.83353666]
[1772654477638,35.61298771,93.401,93.336,29.63868961]
[1772654477838,35.61298771,93.401,93.35,8.27230711]
[1772654478439,35.61298771,93.429,93.351,29.63019624]
[1772654478640,35.61298771,93.429,93.356,29.51770257]
[1772654479740,35.61298771,93.429,93.37,9.634]
[1772654480338,35.61298771,93.429,93.37,47.60448068]
[1772654480543,35.61298771,93.429,93.379,9.633]
[1772654480738,35.61298771,93.429,93.351,29.69533631]
[1772654480946,35.61298771,93.429,93.331,29.69533631]
[1772654481847,9.63,93.416,93.331,29.69533631]
[1772654482050,32.198524,93.409,93.313,29.44578605]
[1772654482854,32.198524,93.409,93.31,8.27230711]
[1772654482855,32.198524,93.403,93.331,29.43996049]
[1772654483443,32.198524,93.403,93.333,29.43996049]
[1772654484856,32.198524,93.403,93.334,9.638]
[1772654485154,32.198524,93.403,93.334,38.9697552]
[1772654485449,32.198524,93.402,93.33,8.27230711]
[1772654485643,32.198524,93.402,93.315,29.43945365]
[1772654486449,34.62180174,93.382,93.315,29.43945365]
[1772654488358,34.62180174,93.382,93.317,39.5735728]
[1772654488553,34.62180174,93.382,93.317,29.9335728]
[1772654488949,9.633,93.379,93.317,29.9335728]
[1772654489153,34.62180174,93.399,93.317,29.9335728]
[1772654489355,34.62180174,93.399,93.331,29.92607661]
[1772654489652,9.634,93.372,93.318,53.982]
[1772654489953,9.634,93.372,93.315,29.16529604]
[1772654491360,34.62180174,93.381,93.32,9.639]
[1772654491560,34.62180174,93.381,93.321,29.14879928]
[1772654492461,34.62180174,93.381,93.291,29.14181608]
[1772654493359,44.25580174,93.373,93.315,9.64]
[1772654493559,34.62180174,93.372,93.315,9.64]
[1772654494154,34.62180174,93.372,93.323,9.639]
[1772654494360,149.757,93.443,93.264,19.291]
[1772654494361,34.62180174,93.412,93.311,29.10934795]
[1772654494566,34.62180174,93.412,93.375,9.634]
[1772654494760,34.62180174,93.459,93.37,8.27230711]
[1772654494966,34.62180174,93.459,93.371,29.11000316]
[1772654495267,9.628,93.435,93.381,9.633]
[1772654495768,34.62180174,93.434,93.35,37.19432827]
[1772654496059,34.62180174,93.42,93.363,9.635]
[1772654496655,8.27230711,93.44,93.35,28.92202116]
[1772654496656,34.62180174,93.418,93.35,28.92202116]
[1772654496857,34.62180174,93.418,93.351,28.91533569]
[1772654497063,34.62180174,93.438,93.378,9.633]
[1772654497262,34.62180174,93.438,93.371,28.91533569]
[1772654498166,44.24680174,93.457,93.391,29.1902018]
[1772654498362,34.62180174,93.449,93.371,29.1902018]
[1772654498567,9.626,93.448,93.381,9.633]
[1772654498868,34.62180174,93.447,93.381,9.633]
[1772654499867,34.62180174,93.447,93.371,29.1902018]
[1772654500458,34.62180174,93.447,93.396,9.631]
[1772654500671,34.62180174,93.447,93.371,29.1902018]
[1772654501465,34.62180174,93.447,93.395,9.632]
[1772654502969,34.62180174,93.444,93.371,29.1902018]
[1772654503969,34.62180174,93.434,93.371,29.1902018]
[1772654505371,34.62180174,93.434,93.35,37.72584976]
[1772654505572,34.62180174,93.434,93.351,32.54722916]
[1772654506366,44.25080174,93.426,93.362,32.54118599]
[1772654506670,34.62180174,93.425,93.362,32.54118599]
[1772654507267,34.62180174,93.425,93.364,32.5414234]
[1772654507669,34.62180174,93.425,93.35,8.24922833]
[1772654507867,34.62180174,93.425,93.344,32.43150715]
[1772654507868,9.63,93.41,93.344,32.43150715]
[1772654509571,9.63,93.41,93.358,9.635]
[1772654513375,9.631,93.4,93.35,9.636]
[1772654513670,32.6833652,93.409,93.344,32.43150715]
[1772654513975,32.6833652,93.408,93.357,9.636]
[1772654514469,8.24922833,93.43,93.357,9.636]
[1772654514470,42.3143652,93.404,93.357,9.636]
[1772654514675,32.6833652,93.404,93.349,9.636]
[1772654515375,32.6833652,93.403,93.349,9.636]
[1772654515876,32.6833652,93.403,93.356,9.636]
[1772654516972,42.3143652,93.402,93.356,9.636]
[1772654517772,9.631,93.398,93.356,9.636]
[1772654517971,32.6833652,93.401,93.363,9.635]
[1772654519478,32.6833652,93.401,93.351,9.636]
[1772654520174,32.6833652,93.398,93.327,29.09331154]
[1772654520972,32.6833652,93.389,93.31,29.12328133]
[1772654521473,32.6833652,93.373,93.31,29.12328133]
[1772654522168,32.6833652,93.409,93.326,29.10120536]
[1772654522775,42.3153652,93.391,93.344,9.637]
[1772654523078,42.3153652,93.391,93.326,29.10120536]
[1772654523079,32.6833652,93.391,93.326,29.10120536]
[1772654524275,32.6833652,93.388,93.31,50.98419491]
[1772654524476,32.6833652,93.388,93.31,29.67763803]
[1772654525075,9.634,93.371,93.33,9.638]
[1772654525274,32.6833652,93.373,93.31,29.67763803]
[1772654525475,32.6833652,93.373,93.312,29.708264]
[1772654525774,32.6833652,93.373,93.311,53.982]
[1772654525775,9.633,93.382,93.337,9.638]
[1772654526883,32.6833652,93.374,93.312,53.982]
[1772654527083,32.6833652,93.374,93.311,29.47696622]
[1772654527880,32.6833652,93.372,93.318,9.64]
[1772654528776,32.6833652,93.371,93.325,9.639]
[1772654531679,32.6833652,93.371,93.312,53.982]
[1772654531884,32.6833652,93.371,93.301,53.982]
[1772654532290,32.6833652,93.357,93.313,9.64]
[1772654532483,32.6833652,93.389,93.303,27.55892411]
[1772654532681,32.6833652,93.389,93.305,27.55892411]
[1772654533181,32.6833652,93.373,93.305,27.55892411]
[1772654534081,32.6833652,93.358,93.309,9.64]
[1772654535486,9.636,93.357,93.309,9.64]
[1772654536587,9.636,93.355,93.309,9.64]
[1772654536788,32.6833652,93.356,93.309,9.64]
[1772654538787,32.6833652,93.356,93.291,53.982]
[1772654538993,8.24922833,93.37,93.281,28.02061956]
[1772654538994,34.12164543,93.337,93.281,28.02061956]
[1772654539790,34.12164543,93.337,93.287,9.643]
[1772654539996,8.24922833,93.37,93.281,28.02061956]
[1772654539997,34.12164543,93.355,93.281,28.02061956]
[1772654540495,34.12164543,93.355,93.291,28.12043357]
[1772654540991,43.75764543,93.355,93.303,37.76143357]
[1772654541191,43.75764543,93.355,93.303,28.12043357]
[1772654541897,34.12164543,93.355,93.31,9.64]
[1772654542994,43.75564543,93.372,93.318,9.64]
[1772654543201,34.12164543,93.371,93.311,28.16095215]
[1772654543492,34.12164543,93.371,93.319,9.639]
[1772654544392,8.24922833,93.39,93.319,9.639]
[1772654544393,34.12164543,93.369,93.319,9.639]
[1772654544996,34.12164543,93.364,93.312,53.982]
[1772654546403,34.32678225,93.362,93.312,53.982]
[1772654546702,34.32678225,93.362,93.313,9.64]
[1772654548001,34.32678225,93.362,93.32,9.639]
[1772654548198,34.32678225,93.362,93.32,12.9431345]
[1772654548900,34.32678225,93.362,93.32,3.3041345]
[1772654550806,43.96178225,93.361,93.32,3.3041345]
[1772654551107,34.32678225,93.36,93.32,3.3041345]
[1772654551604,34.32678225,93.36,93.31,3.3041345]
[1772654551808,34.32678225,93.36,93.32,3.3041345]
[1772654552403,9.635,93.359,93.32,3.3041345]
[1772654552601,43.96178225,93.359,93.32,3.3041345]
[1772654552803,34.32678225,93.358,93.32,3.3041345]
[1772654553804,34.32678225,93.339,93.29,3.3041345]
[1772654554000,34.32678225,93.349,93.32,3.3041345]
[1772654554199,34.32678225,93.349,93.33,3.3041345]
[1772654554397,34.32678225,93.349,93.269,53.982]
[1772654554398,34.32678225,93.379,93.32,32.23040198]
[1772654554610,34.32678225,93.379,93.35,3.3041345]
[1772654554909,43.95778225,93.398,93.36,3.3041345]
[1772654555110,34.32678225,93.397,93.36,3.3041345]
[1772654557307,34.32678225,93.395,93.36,3.3041345]
[1772654557907,9.95319733,93.441,93.35,33.09963361]
[1772654557908,9.631,93.403,93.35,33.09963361]
[1772654558111,34.32678225,93.443,93.399,9.631]
[1772654558412,43.95378225,93.443,93.39,3.3041345]
[1772654558604,34.32678225,93.439,93.38,3.3041345]
[1772654558803,34.32678225,93.419,93.37,3.3041345]
[1772654560617,34.32678225,93.419,93.36,9.635]
[1772654561023,34.32678225,93.417,93.34,29.5047609]
[1772654561209,34.32678225,93.409,93.322,29.5047609]
[1772654561817,34.32678225,93.387,93.322,39.1437609]
[1772654562818,19.256,93.432,93.306,29.83060373]
[1772654562819,34.32678225,93.385,93.306,29.83060373]
[1772654563518,34.32678225,93.376,93.306,29.83060373]
[1772654563713,34.32678225,93.376,93.29,8.24962502]
[1772654563915,34.32678225,93.341,93.267,13.05732855]
[1772654564218,34.32678225,93.341,93.265,9.645]
[1772654564417,34.32678225,93.341,93.264,30.07194699]
[1772654565520,34.32678225,93.333,93.273,9.644]
[1772654568919,35.56262546,93.329,93.264,30.07194699]
[1772654569221,35.56262546,93.329,93.262,9.645]
[1772654569222,35.56262546,93.329,93.241,30.21668332]
[1772654569815,35.56262546,93.32,93.252,9.646]
[1772654570014,35.56262546,93.32,93.253,30.22143375]
[1772654571525,19.267,93.379,93.268,30.21191369]
[1772654571526,35.56262546,93.332,93.268,30.21191369]
[1772654571726,35.56262546,93.332,93.251,30.8260166]
[1772654573427,35.56262546,93.318,93.251,30.8260166]
[1772654573630,35.56262546,93.318,93.23,8.26683257]
[1772654573631,35.56262546,93.318,93.231,31.06356253]
[1772654574425,35.56262546,93.298,93.243,9.647]
[1772654574727,35.56262546,93.298,93.213,31.05409337]
[1772654575125,35.56262546,93.277,93.213,31.05409337]
[1772654575820,35.56262546,93.273,93.215,9.65]
[1772654577030,9.644,93.272,93.219,41.17761419]
[1772654577326,35.56262546,93.294,93.22,31.52761419]
[1772654578334,35.56262546,93.281,93.22,41.17761419]
[1772654578522,35.56262546,93.281,93.22,31.52761419]
[1772654578723,35.56262546,93.281,93.204,31.67588542]
[1772654578936,35.56262546,93.281,93.2,8.26683257]
[1772654578937,9.645,93.27,93.22,31.67588542]
[1772654579128,35.56262546,93.281,93.22,31.67588542]
[1772654580032,45.20562546,93.281,93.223,31.56289864]
[1772654580234,35.56262546,93.281,93.223,31.56289864]
[1772654580435,35.56262546,93.319,93.223,31.56289864]
[1772654580628,9.642,93.299,93.244,9.647]
[1772654580830,35.56262546,93.303,93.244,9.647]
[1772654581930,35.56262546,93.303,93.252,9.646]
[1772654582138,35.56262546,93.303,93.241,31.5226053]
[1772654582430,8.26683257,93.34,93.241,31.5226053]
[1772654582431,35.56262546,93.339,93.241,31.5226053]
[1772654582637,35.56262546,93.326,93.241,31.5226053]
[1772654584029,124.0,93.36,93.22,31.62340179]
[1772654584030,8.26683257,93.3,93.22,31.62340179]
[1772654584230,35.56262546,93.299,93.201,85.60540179]
[1772654584436,149.928,93.336,93.182,31.62340179]
[1772654584437,35.56262546,93.279,93.182,31.62340179]
[1772654584738,35.56262546,93.269,93.182,31.62340179]
[1772654585134,35.56262546,93.258,93.196,9.652]
[1772654585334,35.56262546,93.258,93.182,31.62340179]
[1772654585733,35.56262546,93.258,93.196,9.652]
[1772654586334,35.56262546,93.258,93.204,9.651]
[1772654586830,35.56262546,93.247,93.186,9.653]
[1772654587231,35.56262546,93.247,93.171,31.48833241]
[1772654587835,35.56262546,93.264,93.191,31.36286476]
[1772654588735,35.56262546,93.261,93.201,9.652]
[1772654589537,35.56262546,93.259,93.201,9.652]
[1772654589839,35.56262546,93.279,93.21,31.89053076]
[1772654590036,9.645,93.27,93.21,31.89053076]
[1772654590737,45.20662546,93.279,93.216,9.65]
[1772654590943,35.56262546,93.278,93.216,9.65]
[1772654591137,35.56262546,93.278,93.21,31.89053076]
[1772654591843,35.56262546,93.274,93.218,9.65]
[1772654592740,35.56262546,93.271,93.218,9.65]
[1772654593540,45.20762546,93.269,93.213,9.65]
[1772654593742,45.20762546,93.269,93.21,31.89053076]
[1772654593743,35.56262546,93.268,93.21,31.89053076]
[1772654595240,35.56262546,93.268,93.225,9.649]
[1772654595439,35.56262546,93.281,93.21,31.89053076]
[1772654596644,9.644,93.272,93.217,9.65]
[1772654597738,35.56262546,93.266,93.21,31.89053076]
[1772654598946,34.53808079,93.262,93.211,9.651]
[1772654599242,34.53808079,93.262,93.201,53.982]
[1772654599447,34.53808079,93.257,93.209,9.651]
[1772654600538,9.646,93.255,93.209,9.651]
[1772654601641,9.646,93.253,93.209,9.651]
[1772654602546,34.53808079,93.254,93.211,9.651]
[1772654603146,34.53808079,93.254,93.214,9.65]
[1772654603548,37.84952565,93.24,93.193,34.599775]
[1772654603746,37.84952565,93.24,93.19,3.31144486]
[1772654603955,34.53808079,93.256,93.21,3.31144486]
[1772654605353,34.53808079,93.256,93.213,9.65]
[1772654605954,36.56212963,93.27,93.226,9.649]
[1772654606154,36.56212963,93.27,93.22,3.31144486]
[1772654606345,36.56212963,93.27,93.21,3.31144486]
[1772654607059,36.56212963,93.27,93.219,9.65]
[1772654607555,33.25068477,93.27,93.22,34.07939434]
[1772654608648,33.25068477,93.27,93.23,3.31144486]
[1772654608846,33.25068477,93.27,93.194,30.76490263]
[1772654609047,3.31144486,93.26,93.208,9.651]
[1772654609248,33.25068477,93.259,93.208,9.651]
[1772654609448,3.31144486,93.22,93.173,13.05732855]
[1772654609743,33.25068477,93.228,93.19,3.31144486]
[1772654609947,33.25068477,93.249,93.2,12.96344486]
[1772654612653,33.25068477,93.249,93.181,30.71469687]
[1772654612654,33.25068477,93.269,93.22,3.31144486]
[1772654613250,33.25068477,93.269,93.211,30.00931172]
[1772654613457,33.25068477,93.269,93.18,13.05732855]
[1772654613458,33.25068477,93.259,93.181,30.00574845]
[1772654613653,33.25068477,93.249,93.19,3.31144486]
[1772654614055,33.25068477,93.264,93.22,3.31144486]
[1772654614856,33.25068477,93.299,93.24,3.31144486]
[1772654615352,33.25068477,93.286,93.24,3.31144486]
[1772654615549,33.25068477,93.286,93.23,3.31144486]
[1772654616361,33.25068477,93.282,93.23,3.31144486]
[1772654616562,33.25068477,93.279,93.23,3.31144486]
[1772654618262,33.25068477,93.259,93.21,3.31144486]
[1772654618456,33.25068477,93.249,93.2,3.31144486]
[1772654618656,9.649,93.229,93.18,3.31144486]
[1772654619162,9.649,93.229,93.17,3.31144486]
[1772654619360,42.89968477,93.229,93.17,3.31144486]
[1772654619559,33.25068477,93.225,93.18,9.654]
[1772654619857,33.25068477,93.225,93.17,3.31144486]
[1772654620450,36.56212963,93.22,93.17,3.31144486]
[1772654620856,9.65,93.216,93.171,9.655]
[1772654622057,42.90068477,93.216,93.171,9.655]
[1772654622362,33.25068477,93.215,93.178,9.654]